Cogmind - Beta 14 @@@ ROGUE MODE // 2024.08.23 @ 18:27:29 Player: Minty Result: Destroyed by Q6-9U9(R) with Subdweller Laser Performance ------------- Evolutions (0) 0 Regions Visited (2) 400 Robots Destroyed (21) 105 Value Destroyed (330) 330 Prototype IDs (4) 80 Alien Tech Used (0) 0 Bonus (0) 0 TOTAL SCORE: 915 Bonus ------- None Cogmind --------- Core Integrity 0/250 Matter 280/300 Energy 37/100 System Corruption 0% Temperature Cool (6) Movement Rolling (100) Location -10/Subcaves Parts ------- > --- POWER (1) -------- (None) > --- PROPULSION (2) --- Compact Wheel Hover Unit > --- UTILITY (2) ------ Heat Sink Small Storage Unit > --- WEAPON (2) ------- Beam Cannon > --- INVENTORY (8) ---- High-capacity Matter Pod (200) Structural Scanner Signal Interpreter Hacking Suite Medium Laser Datajack Shrapnel Trap Peak State ------------ > --- POWER ------------ Light Ion Engine > --- PROPULSION ------- Wheel Compact Wheel > --- UTILITY ---------- Small Storage Unit Visual Processing Unit > --- WEAPON ----------- Beam Cannon Beam Cannon > --- INVENTORY -------- Hover Unit High-capacity Matter Pod Structural Scanner Signal Interpreter Hacking Suite Medium Laser Beam Cannon Datajack [Rating: 9] Favorites ----------- Power Light Ion Engine Engine Light Ion Engine Propulsion Compact Wheel Leg Aluminum Leg Wheel Compact Wheel Hover Unit Hover Unit Utility Small Storage Unit Device Heat Sink Storage Small Storage Unit Processor Visual Processing Unit Weapon Beam Cannon Energy Gun Medium Laser Energy Cannon Beam Cannon Special Melee Weapon Datajack Build | -11 -10 -10 ------- Run | Yrd Mat Sub Slots Evolved . | . . . Power . | . . . Propulsion . | . . . Utility . | . . . Weapon . | . . . Parts Attached 17 | 2 13 2 Power 2 | . 2 . Engine 2 | . 2 . Core . | . . . Reactor . | . . . Propulsion 7 | 2 4 1 Treads . | . . . Leg . | . . . Wheel 6 | 2 4 . Hover 1 | . . 1 Flight . | . . . Utility 2 | . 2 . Device 1 | . 1 . Storage . | . . . Processor 1 | . 1 . Hackware . | . . . Protection . | . . . Artifact . | . . . Weapon 6 | . 5 1 Energy Gun 1 | . 1 . Energy Cannon 4 | . 3 1 Ballistic Gun . | . . . Ballistic Cannon . | . . . Launcher . | . . . Special Weapon . | . . . Impact Weapon . | . . . Slashing Weapon . | . . . Piercing Weapon . | . . . Special Melee Weapon 1 | . 1 . Unidentified Prototypes . | . . . Parts Lost 5 | . 1 4 Power 1 | . . 1 Propulsion 1 | . . 1 Utility . | . . . Weapon 3 | . 1 2 Highest Loss Streak 4 | . 1 4 To Critical Strikes . | . . . Average Slot Usage (%) 98 | . 98 93 Engine 13 | . 14 10 Wheel 27 | . 27 24 Device 2 | . 1 14 Storage 14 | . 14 14 Processor 10 | . 11 . Energy Gun 10 | . 12 . Energy Cannon 16 | . 15 26 Peak Build Rating 9 | 6 9 8 Average Rating 7 | 5 7 7 On Entrance 6 | 6 6 8 Naked Turns . | . . . Heaviest Build 15 | 11 15 15 Greatest Support 32 | 32 32 26 Greatest Overweight (x) 1 | . 1 . Average Overweight (x) . | . . . Largest Inventory Capacity 8 | 8 8 8 Average Capacity 8 | 8 8 8 Most Carried 8 | 6 8 8 Average Carried 7 | 5 7 7 Final Capacity 8 | 8 8 8 Final Carried 8 | 4 8 7 Class Distribution -------------------- 100% | Mutant Dominant Class ---------------- Mutant | -10/Materials Mutant | -10/Subcaves Resources | -11 -10 -10 ----------- Run | Yrd Mat Sub Matter Collected 530 | 220 310 . Remotely . | . . . Salvage Created 586 | . 549 37 Parts 36 | . 34 2 Haulers Intercepted 2 | . 2 . Recyclers Shooed . | . . . Parts Field Recycled . | . . . Retrieved Matter . | . . . Parts Self-Destructed . | . . . Prevented . | . . . Kills | -11 -10 -10 ------- Run | Yrd Mat Sub Combat Hostiles Destroyed 11 | . 10 1 Guns 2 | . 2 . Cannons 8 | . 7 1 Classes Destroyed 9 | . 8 1 Worker 2 | . 2 . Builder 1 | . 1 . Hauler 2 | . 2 . Recycler 1 | . 1 . Operator 2 | . 2 . Watcher 2 | . 2 . Swarmer 6 | . 6 . Grunt 4 | . 4 . Subdweller 1 | . . 1 Best Kill Streak 9 | . 9 1 Combat Bots Only 3 | . 3 1 Max Kills in Single Turn 1 | . 1 1 Gunslinging . | . . . Exploded . | . . . Melee . | . . . Uniques/NPCs Destroyed . | . . . Combat | -11 -10 -10 -------- Run | Yrd Mat Sub Hostile Shots Fired 76 | . 53 23 Missed 24 | . 19 5 Damage Taken 787 | . 321 466 Core 261 | . 75 186 Absorbed by Shields . | . . . Regen/Repaired (Parts) 26 | . 26 . Core Remaining (%) 100 | 100 . . Volleys Fired 52 | . 47 5 Largest 2 | . 2 2 Hottest 120 | . 120 120 Shots Fired 102 | . 93 9 Gun 45 | . 45 . Cannon 57 | . 48 9 Launcher . | . . . Special . | . . . Kinetic . | . . . Thermal 79 | . 70 9 Explosive . | . . . Electromagnetic 23 | . 23 . Robot Hit Streak 10 | . 10 10 Robot Miss Streak 4 | . 4 . Penetration Max . | . . . Secondary Targets 1 | . 1 . Max Gunslinging Chain 1 | . 1 . Shots Hit Robots 62 | . 53 9 Core Hits 24 | . 22 2 Critical Kills 1 | . 1 . Critical Parts Destroyed . | . . . Critical Strikes 3 | . 3 . Burn 2 | . 2 . Meltdown 1 | . 1 . Melee Attacks 4 | . 4 . Impact . | . . . Slashing . | . . . Piercing . | . . . Sneak Attacks 4 | . 4 . Combat Hostiles . | . . . Follow-up Attacks . | . . . Damage Inflicted 957 | . 804 153 Guns 333 | . 333 . Cannons 624 | . 471 153 Explosions . | . . . Melee . | . . . Ramming . | . . . Kinetic . | . . . Thermal 762 | . 609 153 Explosive . | . . . Electromagnetic 195 | . 195 . Impact . | . . . Slashing . | . . . Piercing . | . . . Highest Corruption . | . . . Average Corruption . | . . . Corruption Purged . | . . . Corruption Blocked . | . . . Overload Shots . | . . . Overflow Damage 39 | . 39 . Projectiles 39 | . 39 . Explosions . | . . . Melee . | . . . Knockbacks . | . . . Impact . | . . . Kinetic . | . . . Secondary . | . . . Self-Inflicted Damage . | . . . Shots . | . . . Rammed . | . . . Targets Rammed . | . . . Kicked . | . . . Crushed . | . . . Highest Temperature 466 | . 466 . Average Temperature 129 | . 129 . Received Heat Transfer 186 | . 63 123 Effects 3 | . 3 . Shutdowns 1 | . 1 . Energy Bleed 1 | . 1 . Short Circuit 1 | . 1 . Siege Activations . | . . . Robots Corrupted . | . . . Combat Hostiles . | . . . Parts Fried . | . . . Impact Corruptions . | . . . Robots Melted 1 | . 1 . Combat Hostiles 1 | . 1 . Parts Melted 3 | . 2 1 Heat Transferred 1887 | . 1554 333 Parts Sabotaged . | . . . Parts Stolen . | . . . Parts Stripped . | . . . Power Chain Reactions . | . . . Alert | -11 -10 -10 ------- Run | Yrd Mat Sub Peak Influence 184 | . 184 . Initial . | . . . Average 54 | . 54 . Maximum Alert Level . | . . . Low Security (%) 100 | 100 100 . Level 1 . | . . . Level 2 . | . . . Level 3 . | . . . Level 4 . | . . . Level 5 . | . . . High Security . | . . . Max Security . | . . . Squads Dispatched 1 | . 1 . Investigation . | . . . Extermination . | . . . Reinforcement 1 | . 1 . Assault . | . . . Garrison . | . . . Intercept . | . . . Searches Triggered . | . . . Construction Impeded . | . . . Haulers Reinforced . | . . . Active Scanning Responses . | . . . Cargo Convoy Interrupts . | . . . Stealth | -11 -10 -10 --------- Run | Yrd Mat Sub Distress Signals . | . . . Communications Jammed . | . . . Distress Signals . | . . . Times Spotted 21 | . 18 3 Peak Tracking Total 3 | . 3 2 Tactical Retreats . | . . . Traps | -11 -10 -10 ------- Run | Yrd Mat Sub Traps Triggered 1 | . . 1 Indirectly . | . . . Trap Hack Attempts 14 | . 14 . Triggered . | . . . Disarmed 1 | . 1 . Reprogrammed 3 | . 3 . Reused . | . . . Traps Extracted . | . . . Installed . | . . . Triggered . | . . . Most Traps Carried 1 | . . 1 Machines | -11 -10 -10 ---------- Run | Yrd Mat Sub Machines Disabled . | . . . Max in Single Turn . | . . . Machines Repaired . | . . . Machines Dismantled . | . . . Machines Sabotaged . | . . . Overloaded Fab Kills . | . . . Hacking | -11 -10 -10 --------- Run | Yrd Mat Sub Machines Accessed 10 | . 10 . Terminals 7 | . 7 . Fabricators . | . . . Repair Stations 1 | . 1 . Recycling Units 2 | . 2 . Scanalyzers . | . . . Garrison Access . | . . . Total Hacks 28 | . 28 . Successful 17 | . 17 . Failed 11 | . 11 . Catastrophic . | . . . Database Lockouts . | . . . Manual 19 | . 19 . Terminals 20 | . 20 . Fabricators . | . . . Repair Stations 2 | . 2 . Recycling Units 6 | . 6 . Scanalyzers . | . . . Garrison Access . | . . . Terminal Hacks 4 | . 4 . Prototype ID Bank 2 | . 2 . Terminal Index 1 | . 1 . Alert Level 1 | . 1 . Fabricator Hacks . | . . . Repair Station Hacks 2 | . 2 . Scan Component 1 | . 1 . Repair 1 | . 1 . Recycling Unit Hacks 1 | . 1 . Report Inventory 1 | . 1 . Scanalyzer . | . . . Garrison Access Hacks . | . . . Unauthorized Hacks 10 | . 10 . Terminals 5 | . 5 . Skim 5 | . 5 . Fabricators . | . . . Repair Stations . | . . . Recycling Units 5 | . 5 . Monitor 1 | . 1 . Reject 2 | . 2 . Recyclers 2 | . 2 . Scanalyzers . | . . . Garrison Access . | . . . Data Cores Recovered 1 | . 1 . Used 1 | . 1 . Hacking Detections 9 | . 9 . Full Trace Events 1 | . 1 . Feedback Events . | . . . Feedback Blocked . | . . . Robot Schematics Acquired . | . . . Robots Built . | . . . Authchips . | . . . Time . | . . . Total Robot Build Rating . | . . . Part Schematics Acquired . | . . . Parts Built . | . . . Authchips . | . . . Time . | . . . Total Part Build Rating . | . . . Parts Repaired 1 | . 1 . Time 26 | . 26 . Parts Recycled . | . . . Recycled Matter . | . . . Retrieved Matter . | . . . Retrieved Components . | . . . Parts Scanalyzed . | . . . Part Schematics Acquired . | . . . Parts Damaged . | . . . Bothacking | -11 -10 -10 ------------ Run | Yrd Mat Sub Used RIF Installer . | . . . Robots Hacked 4 | . 4 . Non-combat 4 | . 4 . Combat . | . . . Robot Hacks Applied 4 | . 4 . no_distress 3 | . 3 . find_recycling 1 | . 1 . Relay Couplers Released . | . . . Fabnet Peak Effective % . | . . . Robots Rewired . | . . . Allies Hacked . | . . . Hacks Repelled . | . . . Allies | -11 -10 -10 -------- Run | Yrd Mat Sub Total Allies . | . . . Largest Group . | . . . Highest-Rated Group . | . . . Highest-Rated Ally . | . . . Total Orders . | . . . Ally Attacks . | . . . Total Damage . | . . . Kills . | . . . Allies Corrupted . | . . . Allies Melted . | . . . Intel | -11 -10 -10 ------- Run | Yrd Mat Sub Robot Analysis Total . | . . . Derelict Logs Recovered . | . . . Drone Launches . | . . . Drone Recoveries . | . . . Exploration | -11 -10 -10 ------------- Run | Yrd Mat Sub Turns Passed 956 | 3 864 89 Spaces Moved 571 | 1 491 79 Core . | . . . Treads . | . . . Legs . | . . . Wheels 571 | 1 491 79 Hover . | . . . Flight . | . . . Fastest Speed 90 | 100 90 90 Average Speed 94 | 100 95 90 Slowest Speed 100 | 100 100 100 Overloaded Moves . | . . . Propulsion Burnouts . | . . . Robots Hopped . | . . . Cave-ins Triggered . | . . . Exploration Rate (%) 28 | 2 74 10 Regions Visited 2 Branch Regions 1 Pre-discovered Areas . | . . . Known Exits Taken 1 | . 1 . Unknown Exits Taken 1 | 1 . . Scrap Searched . | . . . Spaces Dug . | . . . Terrain Destroyed . | . . . Melee . | . . . Projectile . | . . . AOE . | . . . Terrain Rammed . | . . . Walls Destroyed . | . . . Machines Disabled . | . . . Actions | -11 -10 -10 --------- Run | Yrd Mat Sub Total 882 | 4 791 87 Wait 205 | . 205 . Move 569 | . 490 79 Hop . | . . . Pick Up 11 | . 10 1 Fast Attach 3 | . 3 . Attach 7 | 2 3 2 Detach 1 | . 1 . Swap 7 | . 7 . Drop 9 | 2 7 . Fire 52 | . 47 5 Melee 4 | . 4 . Ram . | . . . Kick . | . . . Crush . | . . . Escape Stasis . | . . . Rewire . | . . . Trap 14 | . 14 . Miscellaneous . | . . . Route ------- -11/Scrapyard -10/Materials (discovered 5 exits: *Mat x3 / [*Min] / *Sub) -10/Subcaves History --------- Turn | Location | Event 4 | -11/Scrapyard | Discovered new exit (range 0) 4 | -11/Scrapyard | Entered Materials 151 | -10/Materials | Discovered new exit (range 15) 234 | -10/Materials | Discovered new exit (range 14) 313 | -10/Materials | Build established: Mutant 520 | -10/Materials | Repaired Wheel 548 | -10/Materials | Identified exit to Materials 548 | -10/Materials | Identified exit to Subcaves 612 | -10/Materials | Learned 2 Mines zone layouts 714 | -10/Materials | Learned location of 1 exit from Recycling 749 | -10/Materials | Loaded intel: 2 recycling unit locations 846 | -10/Materials | Learned location of 1 exit from Recycling 868 | -10/Materials | Entered Subcaves 933 | -10/Subcaves | Disturbed a concealed Subdweller 943 | -10/Subcaves | Disturbed a concealed Subdweller 951 | -10/Subcaves | Core integrity fell below 50% 954 | -10/Subcaves | Core integrity fell below 20% 957 | -10/Subcaves | Destroyed by Q6-9U9(R) with Subdweller Laser Last Messages --------------- 00856_ U-05 Engineer lays Concrete. 00858_ U-05 Engineer builds a Wall. 00860_ U-05 Engineer lays Concrete. LOCATION=SUBCAVES AMBIENT_HEAT=-10 GOAL=ESCAPE 00933_ Triggered Shrapnel Trap. 00933_ An expanding cloud of shrapnel blasts out in all directions. 00933_ Lgt. Ion Engine destroyed. 00933_ Wheel destroyed. 00933_ HE-U87(R) angrily emerges from the Twisted Machinery. 00941_ HE-U87(R) affixes Scrap Shield Fragment to Scrap Shield. 00943_ L9-COP(R) angrily emerges from the Twisted Machinery. 00944_ L9-COP(R): "SUBSUUUUUB!" 00945_ Beam Cannon destroyed. 00946_ Sub. Power Source melted. 00946_ HE-U87(R) destroyed. 00947_ Beam Cannon destroyed. 00948_ Subatomizers dissect the Sub. Monowheel. 00951_ Acquired Shrapnel Trap. Map ----- +----------------------------------------------------+ | ?????????????????????????????????????????????????? | | ?????????????????????????????????????????????????? | | ?????????????????????????????????????????????????? | | ?????????????????????????????????????????????????? | | ?????????????????????????????????????????????????? | | ?????????????????????????????????????????????????? | | ?????????????????????????????????????????????????# | | ?????????????????????????????????????????????????# | | ?????????????????????????????????????????????????# | | ?????????????????????????????????????????????????? | | ?????????????????????????????????????????????????? | | ?????????????????????????????????????????????????# | | ?????????????????????????????????????????????????# | | ?????????????????????????????????????????????????# | | ?????????????????????????????????????????????????# | | ??????????????????????????###????????????????????# | | ?????????????????????????? #????????????????????? | | ?????????????????????????? ##??????????????????## | | ??????????????###????????? ##?##?????????????## | | ?????????????##$$"????????# ## #????????????## | | ?????????????#$ $???????## #???????????## # | | ?????????????#$ $ "#?????# #?????###????# # | | ?????????????# $"?##### #????## ##???# | | ?????????????# $ ?# #< #???## #??## | | ?????????????#$ $ "?# #????# #??# | | ?????????????# $"## @ ##????# #??# # | | ?????????????#< R;; #< ##?##### #??# ## | | ?????????????# <<<< ;;" ;# #??# ## ##?## # | | ?????????????#"<< <%= # #??## #### # | | ?????????????# < < & ## ##### ## | | ?????????????#" " &[ ## ## ### # | | ?????????????#""""" ### ### #?## # | | ?????????????## "" " #### ### #??# ## # | | ??????????????#########??### ## ####?# ### | | ??????????????????????????## #???# #?# | | ??????????????????????????# ##???## #? | | ??????????????????????????# ##?????# ? | | ??????????????????????????# ###?????? ? | | ?????????????????????????# #??????? ? | | ?????????????????????????## ##??????? ## | | ??????????????????????????####??????? #??# | | ????????????????????????????????????? #???# | | ???????????????????????????????????? #???? | | ????????????????????????????????????### ?????# | | ???????????????????????????????????????# ?????? | | ?????????????????????????????????????????????????? | | ?????????????????????????????????????????????????? | | ?????????????????????????????????????????????????? | | ?????????????????????????????????????????????????? | | ?????????????????????????????????????????????????? | +----------------------------------------------------+ Best States ------------- Heat Dissipation 35 Energy Generation 10 Energy Capacity 250 Matter Stores 300 Matter Capacity 300 Sight Range 18 Terrain Scan Density 10 Evasion (%) 42 Item Schematics ----------------- None Robot Schematics ------------------ None Fabricated ------------ Nothing Alien Tech Used ----------------- None Achievements -------------- None Challenges ------------ None Game ------ Seed SurgeCoolingRipteeth Manual? 0 Play Time 00:07:18 Cumulative 882.5 hours Start 2024.08.23 @ 18:21:05 End 2024.08.23 @ 18:27:29 Sessions 1 Manual Loads 0 Difficulty Rogue Special Mode None Game No. 1071 Rogue 792 Adventurer 124 Explorer 155 Win Type - Total 37 Types 28/0/7/1/0/0/0/1/0 Lore% 77 Gallery% 89 Achievement% 78 Wizard Run 0 Options --------- Layout 0 ASCII 0 Keyboard 1 Movement Numpad Keybinds 0 Fullscreen 2 Font 18/Smallcaps Map View 76x50 Zoom Use 0% Tactical HUD 1 Map Filters NONE Filters NONE Steam 1 RUN: 6e69b1a9-5087-48ce-b9b7-d32e5e649f9c